[Event "*** Titled Tuesday Blitz"]
[Site "Chess.com"]
[Date "2019.07.02"]
[Round "8"]
[White "Nightlord1"]
[Black "SergeiAza"]
[Result "1-0"]
[WhiteElo "2177"]
[BlackElo "2802"]
[TimeControl "180+2"]
[EndTime "14:47:37 PDT"]
[Termination "Nightlord1 won on time"]

1. e4 {[%clk 0:03:01.5]} 1... c5 {[%clk 0:03:00.8]} 2. c3 {[%clk 0:03:01.8]}
2... Nf6 {[%clk 0:02:56]} 3. e5 {[%clk 0:03:03]} 3... Nd5 {[%clk 0:02:57]} 4. d4
{[%clk 0:03:03.8]} 4... cxd4 {[%clk 0:02:55.5]} 5. Nf3 {[%clk 0:03:05.2]} 5...
d6 {[%clk 0:02:53.1]} 6. cxd4 {[%clk 0:03:04.9]} 6... Nc6 {[%clk 0:02:53.3]} 7.
Bc4 {[%clk 0:03:05.7]} 7... Nb6 {[%clk 0:02:52.3]} 8. Bxf7+ {[%clk 0:03:03.1]}
8... Kxf7 {[%clk 0:02:48]} 9. e6+ {[%clk 0:03:05]} 9... Kxe6 {[%clk 0:02:27.7]}
10. Ng5+ {[%clk 0:03:04]} 10... Kd7 {[%clk 0:02:28.4]} 11. Nf7 {[%clk
0:03:02.4]} 11... Qe8 {[%clk 0:02:27.2]} 12. Nxh8 {[%clk 0:03:03.7]} 12... e6
{[%clk 0:02:21.2]} 13. Nc3 {[%clk 0:03:01.3]} 13... Be7 {[%clk 0:02:13.3]} 14.
Qg4 {[%clk 0:02:41.8]} 14... Bf6 {[%clk 0:01:55.3]} 15. O-O {[%clk 0:02:36.9]}
15... Ke7 {[%clk 0:01:46.9]} 16. Bg5 {[%clk 0:02:17.1]} 16... Qxh8 {[%clk
0:01:43.7]} 17. Rfe1 {[%clk 0:02:18.1]} 17... e5 {[%clk 0:01:24.5]} 18. Qh4
{[%clk 0:02:14.2]} 18... Bf5 {[%clk 0:01:15.8]} 19. Rad1 {[%clk 0:02:11.1]}
19... Kf7 {[%clk 0:00:56.7]} 20. dxe5 {[%clk 0:02:11.4]} 20... dxe5 {[%clk
0:00:55.7]} 21. Nb5 {[%clk 0:01:55.1]} 21... Rd8 {[%clk 0:00:42.9]} 22. Nd6+
{[%clk 0:01:51.5]} 22... Rxd6 {[%clk 0:00:43.3]} 23. Rxd6 {[%clk 0:01:49.1]}
23... Nd4 {[%clk 0:00:44.3]} 24. f4 {[%clk 0:01:45]} 24... Nc4 {[%clk
0:00:32.2]} 25. Rd5 {[%clk 0:01:36.3]} 25... Be6 {[%clk 0:00:27.2]} 26. Rc5
{[%clk 0:01:31.2]} 26... Nf5 {[%clk 0:00:20.9]} 27. Qh5+ {[%clk 0:01:24.5]}
27... g6 {[%clk 0:00:20.7]} 28. Bxf6 {[%clk 0:01:17.9]} 28... Qxf6 {[%clk
0:00:06.4]} 29. Qxh7+ {[%clk 0:01:18.8]} 29... Kf8 {[%clk 0:00:07.3]} 30. Rc7
{[%clk 0:01:16.4]} 30... exf4 {[%clk 0:00:04.7]} 31. Rxb7 {[%clk 0:01:02.6]} 1-0

[Event "*** Titled Tuesday Blitz"]
[Site "Chess.com"]
[Date "2019.07.02"]
[Round "8"]
[White "SoltaniciR"]
[Black "playerorkinyo"]
[Result "1-0"]
[WhiteElo "2573"]
[BlackElo "2405"]
[TimeControl "180+2"]
[EndTime "14:47:40 PDT"]
[Termination "SoltaniciR won by resignation"]

1. e4 {[%clk 0:03:01.9]} 1... c6 {[%clk 0:03:00.3]} 2. d4 {[%clk 0:03:02.4]}
2... d5 {[%clk 0:03:01.8]} 3. exd5 {[%clk 0:03:03.7]} 3... cxd5 {[%clk
0:03:01.4]} 4. c4 {[%clk 0:03:04.9]} 4... Nf6 {[%clk 0:03:00.5]} 5. Nc3 {[%clk
0:03:06]} 5... g6 {[%clk 0:03:00.8]} 6. Qb3 {[%clk 0:03:06.2]} 6... Bg7 {[%clk
0:02:59.6]} 7. cxd5 {[%clk 0:03:07.4]} 7... O-O {[%clk 0:02:58.2]} 8. Be2 {[%clk
0:03:08.5]} 8... b6 {[%clk 0:02:51.8]} 9. Bf3 {[%clk 0:03:06.9]} 9... Bb7 {[%clk
0:02:52.2]} 10. Nge2 {[%clk 0:03:02.3]} 10... Na6 {[%clk 0:02:51.7]} 11. O-O
{[%clk 0:02:58.3]} 11... Ne8 {[%clk 0:02:41]} 12. Bf4 {[%clk 0:02:53.1]} 12...
Nd6 {[%clk 0:02:40]} 13. Be5 {[%clk 0:02:24.1]} 13... Nc7 {[%clk 0:02:38.7]} 14.
Rad1 {[%clk 0:02:20.3]} 14... Qd7 {[%clk 0:02:35.3]} 15. h3 {[%clk 0:02:08.2]}
15... Rfc8 {[%clk 0:02:24.5]} 16. Bg4 {[%clk 0:02:07.6]} 16... f5 {[%clk
0:02:25.5]} 17. Bf3 {[%clk 0:02:07.1]} 17... Ba6 {[%clk 0:02:19.7]} 18. Rfe1
{[%clk 0:02:07.7]} 18... Bc4 {[%clk 0:02:17.7]} 19. Qa3 {[%clk 0:01:49.7]} 19...
a5 {[%clk 0:01:33.4]} 20. b3 {[%clk 0:01:43.1]} 20... Ba6 {[%clk 0:01:30]} 21.
Nf4 {[%clk 0:01:30.6]} 21... Ncb5 {[%clk 0:01:14]} 22. Nxb5 {[%clk 0:01:30.9]}
22... Nxb5 {[%clk 0:01:09.8]} 23. Qb2 {[%clk 0:01:31.9]} 23... Nc3 {[%clk
0:01:09.4]} 24. Rc1 {[%clk 0:01:31]} 24... Ne4 {[%clk 0:01:05.5]} 25. Bxe4
{[%clk 0:01:11.2]} 25... fxe4 {[%clk 0:01:07.4]} 26. Bxg7 {[%clk 0:01:09.5]}
26... Kxg7 {[%clk 0:01:04.7]} 27. Rxe4 {[%clk 0:01:07.9]} 27... Kg8 {[%clk
0:00:58.6]} 28. Rce1 {[%clk 0:01:05.1]} 28... Qf5 {[%clk 0:00:52.7]} 29. Qd2
{[%clk 0:00:55.5]} 29... Rf8 {[%clk 0:00:37.8]} 30. Ne6 {[%clk 0:00:51.4]} 1-0

[Event "*** Titled Tuesday Blitz"]
[Site "Chess.com"]
[Date "2019.07.02"]
[Round "8"]
[White "dmosesov"]
[Black "kosya4ok"]
[Result "1/2-1/2"]
[WhiteElo "2517"]
[BlackElo "2755"]
[TimeControl "180+2"]
[EndTime "14:47:47 PDT"]
[Termination "Game drawn by agreement"]

1. d4 {[%clk 0:03:01.9]} 1... g6 {[%clk 0:02:59.9]} 2. c4 {[%clk 0:03:00.8]}
2... Bg7 {[%clk 0:03:01.4]} 3. Nc3 {[%clk 0:03:02.2]} 3... d6 {[%clk 0:03:02.5]}
4. Nf3 {[%clk 0:03:02.8]} 4... e5 {[%clk 0:03:03.6]} 5. dxe5 {[%clk 0:02:59.6]}
5... dxe5 {[%clk 0:03:05.5]} 6. Qxd8+ {[%clk 0:03:01.2]} 6... Kxd8 {[%clk
0:03:05.9]} 7. e4 {[%clk 0:02:51.3]} 7... c6 {[%clk 0:03:05.3]} 8. Be3 {[%clk
0:02:51.7]} 8... Nd7 {[%clk 0:03:05.1]} 9. O-O-O {[%clk 0:02:52.6]} 9... Ke7
{[%clk 0:03:05.9]} 10. c5 {[%clk 0:02:40]} 10... Bh6 {[%clk 0:03:05.3]} 11. Bxh6
{[%clk 0:02:19.8]} 11... Nxh6 {[%clk 0:03:07.2]} 12. Bc4 {[%clk 0:02:21.4]}
12... f6 {[%clk 0:03:02.1]} 13. b4 {[%clk 0:02:21.4]} 13... a5 {[%clk
0:02:57.2]} 14. a3 {[%clk 0:02:21.6]} 14... axb4 {[%clk 0:02:58.4]} 15. axb4
{[%clk 0:02:23.5]} 15... b6 {[%clk 0:03:00.3]} 16. cxb6 {[%clk 0:02:08.3]} 16...
Nxb6 {[%clk 0:03:02.2]} 17. Bb3 {[%clk 0:02:09.8]} 17... Bg4 {[%clk 0:02:44]}
18. Kb2 {[%clk 0:02:04.7]} 18... Rhd8 {[%clk 0:02:38.9]} 19. Rxd8 {[%clk
0:02:00.7]} 19... Rxd8 {[%clk 0:02:40.8]} 20. Rd1 {[%clk 0:01:58.3]} 20... Bxf3
{[%clk 0:02:41.3]} 21. gxf3 {[%clk 0:01:56.5]} 21... Rxd1 {[%clk 0:02:39.3]} 22.
Nxd1 {[%clk 0:01:58.4]} 22... Nf7 {[%clk 0:02:40.6]} 23. Bxf7 {[%clk 0:01:53.7]}
23... Kxf7 {[%clk 0:02:42.5]} 24. Ne3 {[%clk 0:01:55]} 24... Ke6 {[%clk
0:02:41.9]} 25. Kc3 {[%clk 0:01:53.9]} 25... f5 {[%clk 0:02:41.9]} 26. Nc4
{[%clk 0:01:35.4]} 26... Nd7 {[%clk 0:02:36.8]} 27. Na5 {[%clk 0:01:32.8]} 27...
Kd6 {[%clk 0:02:36.6]} 28. Nb7+ {[%clk 0:01:27.1]} 28... Kc7 {[%clk 0:02:37.2]}
29. Nc5 {[%clk 0:01:27.3]} 29... Nf6 {[%clk 0:02:15.5]} 30. h3 {[%clk
0:01:12.7]} 30... Kd6 {[%clk 0:02:11.7]} 31. Kc4 {[%clk 0:01:07.7]} 31... Nh5
{[%clk 0:02:10]} 32. Nd3 {[%clk 0:01:02.2]} 32... Ng7 {[%clk 0:02:08]} 33. Nc5
{[%clk 0:00:58.7]} 33... Kc7 {[%clk 0:01:56.2]} 34. Nd3 {[%clk 0:00:57.4]} 34...
Kd6 {[%clk 0:01:55.3]} 35. Nc5 {[%clk 0:00:58.9]} 35... Ne8 {[%clk 0:01:55.7]}
36. Nb7+ {[%clk 0:00:48.9]} 36... Kc7 {[%clk 0:01:55.7]} 37. Nc5 {[%clk
0:00:49.7]} 37... Ng7 {[%clk 0:01:45.3]} 38. Nd3 {[%clk 0:00:39]} 38... fxe4
{[%clk 0:01:43.9]} 39. Nxe5 {[%clk 0:00:35.1]} 39... exf3 {[%clk 0:01:44.5]} 40.
Nxf3 {[%clk 0:00:37]} 40... Kd6 {[%clk 0:01:46.4]} 41. Kd4 {[%clk 0:00:31.9]}
41... Ne6+ {[%clk 0:01:41.8]} 42. Ke4 {[%clk 0:00:31.6]} 42... Nc7 {[%clk
0:01:43.2]} 43. Ng5 {[%clk 0:00:31.1]} 43... h5 {[%clk 0:01:44.1]} 44. Nf7+
{[%clk 0:00:28.6]} 44... Ke6 {[%clk 0:01:44]} 45. Ne5 {[%clk 0:00:30.5]} 1/2-1/2

[Event "*** Titled Tuesday Blitz"]
[Site "Chess.com"]
[Date "2019.07.02"]
[Round "8"]
[White "timator"]
[Black "AlexanderKing"]
[Result "0-1"]
[WhiteElo "2382"]
[BlackElo "2521"]
[TimeControl "180+2"]
[EndTime "14:47:53 PDT"]
[Termination "AlexanderKing won by resignation"]

1. d4 {[%clk 0:03:01.9]} 1... d5 {[%clk 0:03:00.9]} 2. Nf3 {[%clk 0:02:51.9]}
2... c5 {[%clk 0:02:59.9]} 3. g3 {[%clk 0:02:51.2]} 3... Nf6 {[%clk 0:02:57.6]}
4. Bg2 {[%clk 0:02:52.6]} 4... Nc6 {[%clk 0:02:57.5]} 5. O-O {[%clk 0:02:53.8]}
5... e6 {[%clk 0:02:59]} 6. c4 {[%clk 0:02:54.8]} 6... Be7 {[%clk 0:02:58.9]} 7.
cxd5 {[%clk 0:02:54.6]} 7... exd5 {[%clk 0:03:00.8]} 8. Nc3 {[%clk 0:02:55.5]}
8... O-O {[%clk 0:03:01.6]} 9. b3 {[%clk 0:02:55.9]} 9... Re8 {[%clk 0:03:01.4]}
10. Bb2 {[%clk 0:02:56.7]} 10... Bg4 {[%clk 0:03:02.4]} 11. Ne5 {[%clk
0:02:52.7]} 11... cxd4 {[%clk 0:02:52.4]} 12. Nxc6 {[%clk 0:02:48.3]} 12... bxc6
{[%clk 0:02:54.3]} 13. Qxd4 {[%clk 0:02:49.7]} 13... Qd7 {[%clk 0:02:35.2]} 14.
Rfe1 {[%clk 0:02:29.3]} 14... Rad8 {[%clk 0:02:31.9]} 15. Na4 {[%clk 0:02:18.1]}
15... Bf8 {[%clk 0:01:58.6]} 16. e3 {[%clk 0:02:10.7]} 16... Bh3 {[%clk
0:01:50.9]} 17. Bh1 {[%clk 0:02:05.8]} 17... Ne4 {[%clk 0:01:44.9]} 18. Rac1
{[%clk 0:01:47.8]} 18... Qf5 {[%clk 0:01:27.9]} 19. f3 {[%clk 0:01:29.1]} 19...
Ng5 {[%clk 0:01:26.1]} 20. f4 {[%clk 0:01:30.4]} 20... Ne4 {[%clk 0:01:15.4]}
21. Rxc6 {[%clk 0:01:25.5]} 21... h5 {[%clk 0:00:59.7]} 22. Nc3 {[%clk
0:00:18.8]} 22... h4 {[%clk 0:00:51.6]} 23. Ne2 {[%clk 0:00:19.5]} 23... Qg4
{[%clk 0:00:41.8]} 24. Rc2 {[%clk 0:00:15.6]} 24... hxg3 {[%clk 0:00:35]} 25.
hxg3 {[%clk 0:00:16.2]} 25... Nxg3 {[%clk 0:00:35.6]} 26. Nxg3 {[%clk
0:00:17.6]} 26... Qxg3+ {[%clk 0:00:37.5]} 27. Bg2 {[%clk 0:00:19.1]} 27...
Qxe1+ {[%clk 0:00:19.6]} 0-1

[Event "*** Titled Tuesday Blitz"]
[Site "Chess.com"]
[Date "2019.07.02"]
[Round "8"]
[White "severomorskij"]
[Black "chessking2151"]
[Result "0-1"]
[WhiteElo "2840"]
[BlackElo "2625"]
[TimeControl "180+2"]
[EndTime "14:47:54 PDT"]
[Termination "chessking2151 won by resignation"]

1. d4 {[%clk 0:03:01.9]} 1... Nf6 {[%clk 0:02:59]} 2. Bg5 {[%clk 0:03:01.8]}
2... Ne4 {[%clk 0:02:56.1]} 3. Bf4 {[%clk 0:03:02.4]} 3... d5 {[%clk 0:02:49.7]}
4. f3 {[%clk 0:03:02.6]} 4... Nf6 {[%clk 0:02:46]} 5. e4 {[%clk 0:03:03.4]} 5...
dxe4 {[%clk 0:02:33.1]} 6. Nc3 {[%clk 0:03:03.3]} 6... Nd5 {[%clk 0:02:33.7]} 7.
Nxd5 {[%clk 0:03:02.7]} 7... Qxd5 {[%clk 0:02:32.3]} 8. Bxc7 {[%clk 0:03:03.5]}
8... Nc6 {[%clk 0:02:32.4]} 9. c3 {[%clk 0:03:03.3]} 9... Bf5 {[%clk 0:02:29.2]}
10. Qb3 {[%clk 0:03:00.6]} 10... Qd7 {[%clk 0:02:18.4]} 11. Bg3 {[%clk
0:02:40.9]} 11... e6 {[%clk 0:02:16.5]} 12. Be2 {[%clk 0:02:19.2]} 12... Be7
{[%clk 0:01:53.3]} 13. fxe4 {[%clk 0:02:19.2]} 13... Bxe4 {[%clk 0:01:55.2]} 14.
Nf3 {[%clk 0:02:20.3]} 14... O-O {[%clk 0:01:53.3]} 15. O-O {[%clk 0:02:21.2]}
15... Bd5 {[%clk 0:01:44.6]} 16. Qc2 {[%clk 0:02:15.5]} 16... h6 {[%clk
0:01:35.4]} 17. Bd3 {[%clk 0:02:11.3]} 17... Bd6 {[%clk 0:01:33.9]} 18. Bxd6
{[%clk 0:02:08.7]} 18... Qxd6 {[%clk 0:01:34.3]} 19. Qe2 {[%clk 0:02:09.6]}
19... Rad8 {[%clk 0:01:29.3]} 20. a3 {[%clk 0:02:02.2]} 20... Rfe8 {[%clk
0:01:11.3]} 21. Rae1 {[%clk 0:01:59.8]} 21... Qc7 {[%clk 0:01:00.1]} 22. Bb1
{[%clk 0:01:44.6]} 22... e5 {[%clk 0:00:42.3]} 23. Nxe5 {[%clk 0:01:33.8]} 23...
Nxe5 {[%clk 0:00:41.2]} 24. dxe5 {[%clk 0:01:34.4]} 24... Bc4 {[%clk 0:00:41.7]}
25. Qe4 {[%clk 0:01:31]} 25... Bxf1 {[%clk 0:00:36.4]} 26. Qh7+ {[%clk
0:01:31.2]} 26... Kf8 {[%clk 0:00:37.6]} 27. Rxf1 {[%clk 0:01:15.5]} 27... Qxe5
{[%clk 0:00:22.2]} 28. Bg6 {[%clk 0:01:01.8]} 28... Qe3+ {[%clk 0:00:22.6]} 29.
Kh1 {[%clk 0:01:02.3]} 29... Qf2 {[%clk 0:00:22.5]} 30. Bd3 {[%clk 0:00:42.4]}
30... Re1 {[%clk 0:00:14.7]} 0-1

[Event "*** Titled Tuesday Blitz"]
[Site "Chess.com"]
[Date "2019.07.02"]
[Round "8"]
[White "2nd_life"]
[Black "ChessWarrior7197"]
[Result "1-0"]
[WhiteElo "2536"]
[BlackElo "2820"]
[TimeControl "180+2"]
[EndTime "14:47:57 PDT"]
[Termination "2nd_life won by resignation"]

1. e4 {[%clk 0:03:01.9]} 1... c5 {[%clk 0:03:00.2]} 2. Nf3 {[%clk 0:03:02.5]}
2... Nc6 {[%clk 0:03:01.2]} 3. c3 {[%clk 0:03:00.3]} 3... Nf6 {[%clk 0:02:59.1]}
4. e5 {[%clk 0:03:00.9]} 4... Nd5 {[%clk 0:03:00.1]} 5. d4 {[%clk 0:03:02.1]}
5... cxd4 {[%clk 0:02:57.2]} 6. cxd4 {[%clk 0:02:55.9]} 6... d6 {[%clk
0:02:56.5]} 7. Bc4 {[%clk 0:02:53.9]} 7... dxe5 {[%clk 0:02:40.2]} 8. Nxe5
{[%clk 0:02:40.8]} 8... e6 {[%clk 0:02:39]} 9. O-O {[%clk 0:02:31.9]} 9... Bd6
{[%clk 0:02:38.1]} 10. Bxd5 {[%clk 0:01:56.3]} 10... exd5 {[%clk 0:02:37.4]} 11.
Bf4 {[%clk 0:01:57.4]} 11... O-O {[%clk 0:02:25.4]} 12. Nxc6 {[%clk 0:01:57.7]}
12... bxc6 {[%clk 0:02:26.9]} 13. Bxd6 {[%clk 0:01:58.9]} 13... Qxd6 {[%clk
0:02:28.8]} 14. Nc3 {[%clk 0:01:58.9]} 14... a5 {[%clk 0:02:13.5]} 15. Na4
{[%clk 0:01:56.9]} 15... Ba6 {[%clk 0:02:04.6]} 16. Re1 {[%clk 0:01:56.5]} 16...
Bb5 {[%clk 0:01:56.7]} 17. Nc5 {[%clk 0:01:56.5]} 17... a4 {[%clk 0:01:55.8]}
18. Qd2 {[%clk 0:01:48.8]} 18... h6 {[%clk 0:01:51.6]} 19. Re3 {[%clk 0:01:48]}
19... Rae8 {[%clk 0:01:34.6]} 20. Rae1 {[%clk 0:01:48.3]} 20... Rxe3 {[%clk
0:01:35]} 21. Rxe3 {[%clk 0:01:43]} 21... Qg6 {[%clk 0:01:33.1]} 22. Re1 {[%clk
0:01:32.8]} 22... f6 {[%clk 0:01:24.3]} 23. h3 {[%clk 0:01:28.6]} 23... Re8
{[%clk 0:01:24.3]} 24. Rxe8+ {[%clk 0:01:18.9]} 24... Qxe8 {[%clk 0:01:23.8]}
25. Qe3 {[%clk 0:01:19.8]} 25... Qxe3 {[%clk 0:01:07.2]} 26. fxe3 {[%clk
0:01:20.7]} 26... h5 {[%clk 0:01:04.5]} 27. a3 {[%clk 0:01:17.3]} 27... Kf7
{[%clk 0:01:00.6]} 28. b3 {[%clk 0:01:17.3]} 28... axb3 {[%clk 0:00:55.2]} 29.
Nxb3 {[%clk 0:01:19.2]} 29... Ke7 {[%clk 0:00:48.5]} 30. Nc5 {[%clk 0:01:18.1]}
30... Kd6 {[%clk 0:00:44.7]} 31. a4 {[%clk 0:01:17.3]} 31... Bc4 {[%clk
0:00:44.7]} 32. a5 {[%clk 0:01:18.1]} 32... Kc7 {[%clk 0:00:17.8]} 33. Ne6+
{[%clk 0:01:18.7]} 33... Kb7 {[%clk 0:00:05]} 34. Nxg7 {[%clk 0:01:19.7]} 34...
Be2 {[%clk 0:00:06.9]} 35. Kf2 {[%clk 0:01:20.2]} 35... Bd1 {[%clk 0:00:08.1]}
36. Ke1 {[%clk 0:01:21.2]} 36... Bc2 {[%clk 0:00:07.6]} 37. Nxh5 {[%clk
0:01:22]} 37... Ka6 {[%clk 0:00:07.3]} 38. Nxf6 {[%clk 0:01:22.4]} 38... Kxa5
{[%clk 0:00:09.2]} 39. h4 {[%clk 0:01:22.6]} 1-0

[Event "*** Titled Tuesday Blitz"]
[Site "Chess.com"]
[Date "2019.07.02"]
[Round "8"]
[White "Vegan4future"]
[Black "jk13"]
[Result "0-1"]
[WhiteElo "2413"]
[BlackElo "2590"]
[TimeControl "180+2"]
[EndTime "14:47:59 PDT"]
[Termination "jk13 won by checkmate"]

1. Nc3 {[%clk 0:03:01.9]} 1... e5 {[%clk 0:02:59.8]} 2. Nf3 {[%clk 0:03:02.4]}
2... Nc6 {[%clk 0:02:59.5]} 3. d4 {[%clk 0:03:03.7]} 3... exd4 {[%clk
0:03:01.4]} 4. Nxd4 {[%clk 0:03:05.1]} 4... Nf6 {[%clk 0:03:01.5]} 5. Bg5 {[%clk
0:03:06]} 5... Bb4 {[%clk 0:03:01]} 6. Nxc6 {[%clk 0:03:06.9]} 6... bxc6 {[%clk
0:02:54]} 7. Qd4 {[%clk 0:03:07.6]} 7... Be7 {[%clk 0:02:50.1]} 8. e4 {[%clk
0:03:03.2]} 8... h6 {[%clk 0:02:46.3]} 9. Bh4 {[%clk 0:02:55.9]} 9... Rb8 {[%clk
0:02:42.8]} 10. O-O-O {[%clk 0:02:53.7]} 10... O-O {[%clk 0:02:41.2]} 11. Bd3
{[%clk 0:02:28.5]} 11... Rb4 {[%clk 0:02:25.6]} 12. Qxa7 {[%clk 0:02:25.4]}
12... d6 {[%clk 0:02:01.3]} 13. Rhe1 {[%clk 0:02:11.3]} 13... Be6 {[%clk
0:01:56.5]} 14. Bxf6 {[%clk 0:01:57]} 14... Bxf6 {[%clk 0:01:57.1]} 15. e5
{[%clk 0:01:58.4]} 15... Bg5+ {[%clk 0:01:41.9]} 16. Kb1 {[%clk 0:01:54.5]}
16... d5 {[%clk 0:01:31.1]} 17. g3 {[%clk 0:01:45]} 17... Be7 {[%clk 0:00:53.6]}
18. f4 {[%clk 0:01:44.5]} 18... Bg4 {[%clk 0:00:49]} 19. Ne2 {[%clk 0:01:37]}
19... Rb6 {[%clk 0:00:46.4]} 20. c3 {[%clk 0:01:21.5]} 20... Qd7 {[%clk
0:00:39.1]} 21. Rd2 {[%clk 0:01:17.8]} 21... Rfb8 {[%clk 0:00:39.1]} 22. Nc1
{[%clk 0:01:04.5]} 22... c5 {[%clk 0:00:38.9]} 23. Qa5 {[%clk 0:00:47.5]} 23...
Qc6 {[%clk 0:00:36.7]} 24. c4 {[%clk 0:00:44.5]} 24... Qb7 {[%clk 0:00:26.1]}
25. Qa3 {[%clk 0:00:43.3]} 25... dxc4 {[%clk 0:00:22.3]} 26. Bxc4 {[%clk
0:00:45.2]} 26... Rb4 {[%clk 0:00:23.5]} 27. Bd5 {[%clk 0:00:43.8]} 27... c6
{[%clk 0:00:21.6]} 28. Be4 {[%clk 0:00:39.8]} 28... c4 {[%clk 0:00:22.4]} 29.
Qc3 {[%clk 0:00:36.4]} 29... Ra4 {[%clk 0:00:22.5]} 30. Bc2 {[%clk 0:00:27.9]}
30... Bb4 {[%clk 0:00:22.4]} 31. Qe3 {[%clk 0:00:23.2]} 31... Bxd2 {[%clk
0:00:23.1]} 32. Qxd2 {[%clk 0:00:25.1]} 32... Qxb2# {[%clk 0:00:23.9]} 0-1

[Event "*** Titled Tuesday Blitz"]
[Site "Chess.com"]
[Date "2019.07.02"]
[Round "8"]
[White "Airquake"]
[Black "Th3ChessViking"]
[Result "1-0"]
[WhiteElo "2660"]
[BlackElo "2475"]
[TimeControl "180+2"]
[EndTime "14:48:04 PDT"]
[Termination "Airquake won on time"]

1. g3 {[%clk 0:03:01.9]} 1... d5 {[%clk 0:02:58.4]} 2. Bg2 {[%clk 0:03:03.8]}
2... c6 {[%clk 0:02:58.4]} 3. Nf3 {[%clk 0:03:05.2]} 3... Nf6 {[%clk 0:03:00.3]}
4. O-O {[%clk 0:03:05.6]} 4... Bf5 {[%clk 0:03:01.8]} 5. d3 {[%clk 0:03:06.9]}
5... e6 {[%clk 0:03:01.9]} 6. Nbd2 {[%clk 0:03:08.1]} 6... h6 {[%clk 0:03:02.9]}
7. b3 {[%clk 0:03:09.2]} 7... a5 {[%clk 0:03:03.3]} 8. a4 {[%clk 0:03:09.5]}
8... Na6 {[%clk 0:03:03.1]} 9. Bb2 {[%clk 0:03:10.7]} 9... Be7 {[%clk
0:02:54.1]} 10. Re1 {[%clk 0:03:08.5]} 10... Bh7 {[%clk 0:02:52.5]} 11. e4
{[%clk 0:03:09.2]} 11... O-O {[%clk 0:02:48.2]} 12. Qe2 {[%clk 0:03:09.6]} 12...
Re8 {[%clk 0:02:44.1]} 13. Rad1 {[%clk 0:03:01.8]} 13... Nb4 {[%clk 0:02:41.3]}
14. e5 {[%clk 0:02:43.5]} 14... Nd7 {[%clk 0:02:41.3]} 15. Nf1 {[%clk
0:02:44.6]} 15... Qb6 {[%clk 0:02:34.2]} 16. h4 {[%clk 0:02:41.7]} 16... Bf8
{[%clk 0:02:34.6]} 17. g4 {[%clk 0:02:42.7]} 17... c5 {[%clk 0:01:58.6]} 18. h5
{[%clk 0:02:31.5]} 18... Be7 {[%clk 0:01:48.8]} 19. Ng3 {[%clk 0:02:25]} 19...
d4 {[%clk 0:01:25.7]} 20. Qd2 {[%clk 0:02:16.4]} 20... Nd5 {[%clk 0:01:24.1]}
21. g5 {[%clk 0:02:16.3]} 21... Bf8 {[%clk 0:01:03.1]} 22. Kh2 {[%clk
0:01:53.9]} 22... Qb4 {[%clk 0:01:02.2]} 23. Qc1 {[%clk 0:01:45]} 23... Nc3
{[%clk 0:00:55]} 24. Rd2 {[%clk 0:01:25.4]} 24... Nd5 {[%clk 0:00:41.3]} 25.
Rde2 {[%clk 0:01:22.4]} 25... Qb6 {[%clk 0:00:39.6]} 26. Ne4 {[%clk 0:01:18]}
26... Qc7 {[%clk 0:00:35.2]} 27. Ned2 {[%clk 0:01:00.2]} 27... Rab8 {[%clk
0:00:24.3]} 28. Nc4 {[%clk 0:01:00.8]} 28... b5 {[%clk 0:00:21.2]} 29. axb5
{[%clk 0:01:01.7]} 29... Rxb5 {[%clk 0:00:23.1]} 30. gxh6 {[%clk 0:01:02.1]}
30... gxh6 {[%clk 0:00:23.3]} 31. Kh1 {[%clk 0:01:01.3]} 31... Kh8 {[%clk
0:00:24.2]} 32. Nd6 {[%clk 0:01:00.1]} 32... Bxd6 {[%clk 0:00:22.3]} 33. exd6
{[%clk 0:01:02]} 33... Qxd6 {[%clk 0:00:23.8]} 34. Qxh6 {[%clk 0:01:03.6]} 34...
Nf4 {[%clk 0:00:24.9]} 35. Ng5 {[%clk 0:01:01.1]} 1-0